fUSD/lending_fUSD_20241112
["ID","MTS","AMOUNT","RATE_DAILY","PERIOD"]
[342084261,1731424363851,710.41,9.918e-05,2]
[342084262,1731424364286,710.41,0.00012182,2]
[342084263,1731424391923,343.79,0.00010959,2]
[342084264,1731424402737,2000.0,0.00027,120]
[342084265,1731424439533,250.0,0.00011783,2]
[342084266,1731424656754,929.0,0.00016224,10]
[342084268,1731424840734,150.0,0.00012055,2]
[342084269,1731424886890,17919.62918972,0.00016224,10]
[342084270,1731424899469,2441.81302635,0.00016224,10]
[342084271,1731424915889,1000.0,0.00011774,2]
[342084272,1731424921774,166.23,0.00011774,2]
[342084273,1731424921985,166.23,0.00011777,2]
[342084274,1731424922521,166.23,0.0001178,2]
[342084275,1731424922977,166.23,0.00011783,2]
[342084276,1731424923152,166.23,0.00011786,2]
[342084277,1731424923515,166.23,0.00011789,2]
[342084278,1731424924384,166.23,0.00011792,2]
[342084279,1731424925628,166.23,0.00011795,2]
[342084280,1731424926428,166.23,0.00011799,2]
[342084281,1731424926676,166.23,0.00011802,2]
[342084282,1731424926778,166.23,0.00011805,2]
[342084283,1731424926914,166.23,0.00011808,2]
[342084284,1731424927013,166.23,0.00011811,2]
[342084285,1731424927181,166.23,0.00011814,2]
[342084286,1731424927418,166.23,0.00011817,2]
[342084287,1731424927651,166.23,0.0001182,2]
[342084288,1731424927871,166.23,0.00011823,2]
[342084289,1731424928214,166.23,0.00011826,2]
[342084290,1731424928391,166.23,0.0001183,2]
[342084291,1731424928533,166.23,0.00011833,2]
[342084292,1731424976147,151.07,0.00011807,2]
[342084293,1731425057830,160.0,0.000119,2]
[342084295,1731425157569,639.36,0.00010022,2]
[342084296,1731425157820,639.36,0.00012286,2]
[342084297,1731425176381,250.0,0.00011954,2]
[342084298,1731425250552,150.0,0.0001193,2]
[342084299,1731425250576,100.0,0.0001193,2]
[342084307,1731425406582,1000.0,0.00027,60]
[342084308,1731425414513,500.0,0.00027,60]
[342084320,1731425432435,-151.07,0.00012594,2]
[342084321,1731425432446,-150.0,0.00012599,2]
[342084322,1731425432455,-569.77923362,0.000126,2]
[342084323,1731425432468,-1912.76076638,0.000126,2]
[342084324,1731425432478,-6782.513,0.000126,2]
[342084325,1731425432488,-263.5176,0.000126,2]
[342084326,1731425432498,-2153.4922,0.000126,2]
[342084327,1731425432510,-1445.4756,0.000126,2]
[342084328,1731425432520,-2777.92070101,0.000126,2]
[342084329,1731425432529,-196.63091539,0.00012633,2]
[342084330,1731425432539,-2777.92070092,0.00012633,2]
[342084331,1731425432548,-2777.92070092,0.00012667,2]
[342084332,1731425432558,-45328.71144828,0.0001267,2]
[342084333,1731425432567,-47997.67832372,0.0001268,2]
[342084334,1731425432576,-2375.674,0.000127,2]
[342084335,1731425432587,-179124.2331,0.000127,2]
[342084336,1731425432596,-2777.92070092,0.000127,2]
[342084337,1731425432605,-2777.92070092,0.00012733,2]
[342084338,1731425432614,-3570.13,0.00012733,2]
[342084339,1731425432624,-1092.09,0.00012733,2]
[342084340,1731425432633,-2733.7,0.00012733,2]
[342084341,1731425432643,-426.22825879,0.00012756,2]
[342084342,1731425432652,-2777.92070092,0.00012767,2]
[342084343,1731425432661,-672.0,0.00012784,2]
[342084344,1731425432671,-2403.845,0.000128,2]
[342084345,1731425432681,-40333.4456,0.000128,2]
[342084346,1731425432690,-1000.0,0.000128,2]
[342084347,1731425432700,-90505.4361,0.000128,2]
[342084348,1731425432710,-510.4835,0.000128,2]
[342084349,1731425432719,-3989.39989968,0.000128,2]
[342084350,1731425432729,-2217.5112,0.000128,2]
[342084351,1731425432738,-19493.3543,0.000128,2]
[342084352,1731425432748,-2275.74819083,0.000128,2]
[342084353,1731425432760,-2777.92070092,0.000128,2]
[342084354,1731425432769,-2777.92070092,0.00012833,2]
[342084355,1731425432779,-17404.1266,0.00012859,2]
[342084356,1731425432789,-2777.92070092,0.00012867,2]
[342084357,1731425432798,-3000.0,0.0001287,2]
[342084358,1731425432808,-500.0,0.00012873,2]
[342084359,1731425432818,-500.0,0.00012873,2]
[342084360,1731425432828,-500.0,0.00012873,2]
[342084361,1731425432838,-4502.3978,0.00012888,2]
[342084362,1731425432848,-1214.939,0.0001289,2]
[342084363,1731425432858,-176.548,0.0001289,2]
[342084366,1731425432868,-172.43780871,0.0001289,2]
[342084368,1731425432878,-2275.74819083,0.0001289,2]
[342084370,1731425432887,-223.47538942,0.00012895,2]
[342084372,1731425432897,-500.38097493,0.00012899,2]
[342084374,1731425432906,-436.20307847,0.00012899,2]
[342084376,1731425432916,-455.36466062,0.00012899,2]
[342084377,1731425432926,-200.0,0.000129,2]
[342084379,1731425432936,-223.47538941,0.000129,2]
[342084381,1731425432946,-576371.46098729,0.000129,3]
[342084384,1731425433028,-7246.64612946,0.000129,3]
[342084385,1731425433062,-7490.69879502,0.000129,3]
[342084386,1731425433100,-1516.65763753,0.000129,3]
[342084418,1731425438666,-211.60600258,0.0001289,2]
[342084419,1731425438676,-559886.46586562,0.000129,3]
[342084420,1731425438686,-2777.92070092,0.000129,2]
[342084421,1731425438697,-430.19319665,0.000129,2]
[342084422,1731425438707,-196.63091539,0.000129,2]
[342084423,1731425438716,-500.0,0.00012973,2]
[342084424,1731425438726,-211.60600258,0.0001298,2]
[342084425,1731425438735,-211.60600258,0.0001298,2]
[342084426,1731425438744,-249.81914643,0.00012989,2]
[342084427,1731425438754,-500.0,0.00012989,2]
[342084428,1731425438766,-500.0,0.00012989,2]
[342084429,1731425438776,-500.0,0.00012989,2]
[342084430,1731425438785,-500.0,0.00012989,2]
[342084431,1731425438795,-500.0,0.00012989,2]
[342084432,1731425438804,-500.0,0.00012989,2]
[342084433,1731425438814,-500.0,0.00012989,2]
[342084434,1731425438823,-500.0,0.00012989,2]
[342084435,1731425438833,-500.0,0.00012989,2]
[342084436,1731425438843,-500.0,0.00012989,2]
[342084437,1731425438852,-500.0,0.00012989,2]
[342084438,1731425438861,-500.0,0.00012989,2]
[342084439,1731425438871,-500.0,0.00012989,2]
[342084440,1731425438880,-500.0,0.00012989,2]
[342084441,1731425438890,-500.0,0.00012989,2]
[342084442,1731425438901,-500.0,0.00012989,2]
[342084443,1731425438910,-500.0,0.00012989,2]
[342084444,1731425438920,-500.0,0.00012989,2]
[342084445,1731425438929,-500.0,0.00012989,2]
[342084446,1731425438938,-250.00616823,0.00012989,2]
[342084447,1731425438948,-1510159.28460521,0.0001299,2]
[342084448,1731425438957,-205.1199428,0.0001299,2]
[342084449,1731425438967,-3471.9857241,0.0001299,2]
[342084450,1731425438976,-1309.6378809,0.0001299,2]
[342084451,1731425438986,-767.7465124,0.0001299,2]
[342084452,1731425438996,-3345.8414686,0.0001299,2]
[342084453,1731425439006,-151.0,0.0001299,2]
[342084454,1731425439017,-151.0,0.0001299,2]
[342084455,1731425439027,-151.0,0.0001299,2]
[342084456,1731425439036,-151.57572,0.0001299,2]
[342084457,1731425439045,-151.57572,0.0001299,2]
[342084458,1731425439054,-151.0,0.0001299,2]
[342084459,1731425439064,-151.0,0.0001299,2]
[342084461,1731425439073,-151.0,0.0001299,2]
[342084463,1731425439082,-151.0,0.0001299,2]
[342084464,1731425439092,-353.578483,0.0001299,2]
[342084465,1731425439101,-353.578483,0.0001299,2]
[342084466,1731425439110,-151.0,0.0001299,2]
[342084467,1731425439119,-167.744767,0.0001299,2]
[342084468,1731425439128,-150.01,0.00012999,2]
[342084469,1731425439137,-1833.07226478,0.00012999,2]
[342084470,1731425439146,-1375.0,0.00012999,2]
[342084471,1731425439155,-150.502,0.00013,2]
[342084472,1731425439164,-1991.0,0.00013,2]
[342084473,1731425439174,-559.0,0.00013,2]
[342084474,1731425439183,-1923.0,0.00013,2]
[342084475,1731425439192,-1363.84,0.00013,2]
[342084476,1731425439201,-3745.0,0.00013,2]
[342084477,1731425439210,-922.0,0.00013,2]
[342084478,1731425439219,-814.0,0.00013,2]
[342084480,1731425439228,-3487.0,0.00013,2]
[342084482,1731425439238,-151.497,0.00013,2]
[342084484,1731425439247,-631.0,0.00013,2]
[342084485,1731425439256,-5927.0,0.00013,2]
[342084486,1731425439267,-1159.0,0.00013,2]
[342084487,1731425439277,-13627.0,0.00013,2]
[342084488,1731425439286,-1254.0,0.00013,2]
[342084489,1731425439295,-1757423.39873424,0.00013,2]
[342084490,1731425439460,-5391.77,0.00013,2]
[342084491,1731425439473,-496945.74203393,0.00013,2]
[342084492,1731425439991,-273.28933202,0.00013,2]
[342084493,1731425440040,-721.53878888,0.00013,2]
[342084494,1731425440050,-1220.86780256,0.00013,2]
[342084495,1731425440061,-1985.72926524,0.00013,2]
[342084497,1731425440189,-1027930.67734069,0.0001299,2]
[342084536,1731425440847,-485.28990501,0.000126,2]
[342084539,1731425440859,-4986.06109499,0.000126,2]
[342084541,1731425440869,-844.75477322,0.000128,2]
[342084543,1731425440878,-102443.49321587,0.0001299,2]
[342084574,1731425441165,-1307.94500003,0.0001299,2]
[342084576,1731425441176,-4652.03374504,0.0001299,2]
[342084578,1731425441187,-281.3614,0.0001299,2]
[342084685,1731425443523,-1500.0,0.0001299,2]
[342084686,1731425443581,-776.06146747,0.0001299,2]
[342084687,1731425443592,-2510.06662043,0.0001299,2]
[342084688,1731425443623,-5947.03349882,0.0001299,2]
[342084689,1731425443639,-22081.13151205,0.0001299,2]
[342084690,1731425443651,-3021.49062781,0.0001299,2]
[342084691,1731425443663,-4976.88509144,0.0001299,2]
[342084692,1731425443674,-3885.36279885,0.0001299,2]
[342084693,1731425443686,-1656.27616096,0.0001299,2]
[342084694,1731425443701,-526.6052595,0.0001299,2]
[342084701,1731425443778,-359487.09399577,0.0001299,2]
[342084703,1731425443788,-26133.23493199,0.0001299,2]
[342084705,1731425443797,-10000.0,0.0001299,2]
[342084707,1731425443806,-540.913,0.00013,2]
[342084709,1731425443816,-3935625.57595286,0.00013,2]
[342084711,1731425443826,-150.1,0.00013,2]
[342084713,1731425443836,-87358.64850653,0.00013,2]
[342084715,1731425443847,-53808.62922,0.00013,2]
[342084885,1731425446428,-368.793335,0.0001299,2]
[342084887,1731425446438,-151.0,0.0001299,2]
[342084889,1731425446447,-174134.206665,0.00013,2]
[342084919,1731425446723,-3647.04150548,0.00013,2]
[342084921,1731425446735,-377280.8500728,0.00013,2]
[342084929,1731425446795,-935.48,0.00013,2]
[342085347,1731425451544,-5391.77,0.000126,2]
[342085842,1731425492316,159.773332,0.000159,10]
[342085843,1731425545838,249.0,0.00027,60]
[342085846,1731425748030,180.89,0.00012216,2]
[342085849,1731425852134,200.0,0.00027,60]
[342085850,1731425882227,250.0,0.00011865,2]
[342085851,1731425887917,674.61,9.947e-05,2]
[342085852,1731425888126,674.61,0.00012211,2]
[342085853,1731425905430,704.0,0.00011871,2]
[342085854,1731425940423,410.04,0.00011854,2]
[342085855,1731426016251,250.0,0.00011854,2]
[342085856,1731426038358,168.16,0.00011882,2]
[342085858,1731426093188,159.773333,0.000159,10]
[342085859,1731426096184,215.79,0.00011914,2]
[342085860,1731426106744,402.33,0.00011914,2]
[342085861,1731426190524,-500.0,0.00012403,2]
[342085862,1731426192180,-500.0,0.00012403,2]
[342085863,1731426193567,-300.0,0.00012456,2]
[342085864,1731426193593,-200.0,0.00012457,2]
[342085865,1731426194773,-500.0,0.00012457,2]
[342085866,1731426197003,-500.0,0.00012457,2]
[342085867,1731426197752,-500.0,0.00012457,2]
[342085868,1731426198436,2119527.56754454,0.00027,60]
[342085869,1731426198676,-500.0,0.00012457,2]
[342085870,1731426224682,23900.0,0.00012077,2]
[342085871,1731426226112,1518690.67069132,0.00025,120]
[342085872,1731426226142,30000.0,0.00025,120]
[342085873,1731426247083,30000.0,0.000237,120]
[342085874,1731426247110,273370.57081703,0.000237,120]
[342085875,1731426247156,5000000.0,0.000237,120]
[342085877,1731426399678,177.36,0.00011894,2]
[342085878,1731426399994,42.64,0.00011909,2]
[342085879,1731426400019,134.72,0.00011909,2]
[342085880,1731426400181,15.28,0.00011924,2]
[342085881,1731426400205,150.0,0.00011924,2]
[342085882,1731426400226,12.08,0.00011924,2]
[342085883,1731426400339,137.92,0.00011939,2]
[342085884,1731426400363,39.44,0.00011939,2]
[342085885,1731426401109,110.56,0.00011953,2]
[342085886,1731426401131,66.8,0.00011953,2]
[342085888,1731426449885,150.0,0.00011884,2]
[342085889,1731426449924,150.0,0.00011884,2]
[342085890,1731426450178,150.0,0.00011884,2]
[342085891,1731426450200,150.0,0.00011884,2]
[342085892,1731426450223,1252.42,0.00011884,2]
[342085893,1731426452657,150.0,0.00011903,2]
[342085894,1731426452686,293.52,0.00011903,2]
[342085895,1731426452710,556.48,0.00011903,2]
[342087114,1731426587216,680.12,0.0001001,2]
[342087115,1731426587442,680.12,0.00012274,2]
[342087121,1731426631590,-150.0,0.00012466,2]
[342087122,1731426631599,-1000.0,0.00012499,2]
[342087123,1731426631609,-892.47628881,0.00012499,2]
[342087124,1731426631618,-150.0,0.00012499,2]
[342087125,1731426631627,-6485.5997,0.000125,2]
[342087126,1731426631636,-87702.3995,0.000125,2]
[342087127,1731426631646,-663.5766,0.000125,2]
[342087128,1731426631656,-1000.0,0.000125,2]
[342087129,1731426631665,-500.0,0.000125,2]
[342087130,1731426631675,-1848.25284272,0.000125,2]
[342087131,1731426631685,-2500.0,0.000125,2]
[342087132,1731426631696,-1000.0,0.000125,2]
[342087133,1731426631705,-1848.2528427,0.00012544,2]
[342087134,1731426631715,-1848.2528427,0.00012589,2]
[342087135,1731426631726,-143304.3587,0.000126,2]
[342087136,1731426631737,-100000.0,0.000126,2]
[342087137,1731426631747,-4391.7732,0.000126,2]
[342087138,1731426631757,-2200.4365,0.000126,2]
[342087139,1731426631767,-8941.4017,0.000126,2]
[342087140,1731426631777,-1848.2528427,0.00012633,2]
[342087141,1731426631786,-1848.2528427,0.00012678,2]
[342087142,1731426631798,-1078.75,0.00012678,2]
[342087143,1731426631808,-150.99,0.00012678,2]
[342087144,1731426631818,-426.22825879,0.00012702,2]
[342087145,1731426631828,-1848.2528427,0.00012722,2]
[342087146,1731426631838,-1848.2528427,0.00012767,2]
[342087147,1731426631847,-5000.0,0.000128,2]
[342087148,1731426631856,-1848.2528427,0.00012811,2]
[342087150,1731426631865,-1848.2528427,0.00012856,2]
[342087154,1731426632157,-3000.0,0.0001287,2]
[342087155,1731426632176,-150.0,0.00012877,2]
[342087156,1731426632185,-1139.506,0.00012898,2]
[342087157,1731426632194,-1375.0,0.00012899,2]
[342087158,1731426632205,-307.44008859,0.00012899,2]
[342087159,1731426632214,-155.45469241,0.000129,2]
[342087160,1731426632224,-365922.4303674,0.000129,3]
[342087161,1731426632233,-174.399,0.000129,2]
[342087162,1731426632242,-5508.09726538,0.000129,2]
[342087163,1731426632251,-1848.2528427,0.000129,2]
[342087164,1731426632260,-432.81,0.000129,2]
[342087165,1731426632269,-150.0,0.000129,2]
[342087166,1731426632278,-153.05,0.000129,2]
[342087167,1731426632288,-150.0,0.000129,2]
[342087168,1731426632297,-150.0,0.000129,2]
[342087169,1731426632306,-150.0,0.000129,2]
[342087170,1731426632315,-885.37,0.000129,2]
[342087171,1731426632326,-645.95,0.000129,2]
[342087172,1731426632335,-300.57,0.000129,2]
[342087173,1731426632345,-457.77,0.000129,2]
[342087174,1731426632354,-150.0,0.000129,2]
[342087175,1731426632364,-300.0,0.000129,2]
[342087176,1731426632374,-154.05,0.000129,2]
[342087177,1731426632384,-150.0,0.000129,2]
[342087178,1731426632393,-500.0,0.00012973,2]
[342087179,1731426632404,-507.35824058,0.00012973,2]
[342087180,1731426632413,-500.0,0.00012973,2]
[342087181,1731426632422,-6954.8820471,0.00012988,2]
[342087182,1731426632431,-855.862961,0.00012988,2]
[342087183,1731426632439,-4024.25242,0.00012988,2]
[342087184,1731426632450,-2144.5806332,0.00012988,2]
[342087185,1731426632459,-653.2414379,0.00012988,2]
[342087186,1731426632468,-279.3557843,0.00012988,2]
[342087187,1731426632477,-272.043016,0.0001299,2]
[342087188,1731426632487,-272.043016,0.0001299,2]
[342087189,1731426632497,-151.0,0.0001299,2]
[342087190,1731426632507,-257.525758,0.0001299,2]
[342087191,1731426632516,-257.525758,0.0001299,2]
[342087192,1731426632526,-2334.58238562,0.00012997,2]
[342087193,1731426632535,-2001.91896162,0.00012997,2]
[342087194,1731426632544,-150.01,0.00012999,2]
[342087195,1731426632554,-500.0,0.00012999,2]
[342087196,1731426632563,-174.8734025,0.00012999,2]
[342087197,1731426632572,-500.0,0.00012999,2]
[342087198,1731426632583,-500.0,0.00012999,2]
[342087199,1731426632592,-500.0,0.00012999,2]
[342087200,1731426632601,-500.0,0.00012999,2]
[342087201,1731426632611,-500.0,0.00012999,2]
[342087202,1731426632621,-500.0,0.00012999,2]
[342087203,1731426632630,-500.0,0.00012999,2]
[342087204,1731426632639,-575.00431776,0.00012999,2]
[342087205,1731426632649,-500.0,0.00012999,2]
[342087206,1731426632659,-500.0,0.00012999,2]
[342087207,1731426632668,-500.0,0.00012999,2]
[342087208,1731426632681,-500.0,0.00012999,2]
[342087209,1731426632691,-500.0,0.00012999,2]
[342087210,1731426632702,-500.0,0.00012999,2]
[342087211,1731426632712,-500.0,0.00012999,2]
[342087212,1731426632722,-350.0,0.00012999,2]
[342087213,1731426632734,-500.0,0.00012999,2]
[342087214,1731426632744,-991.54113239,0.00012999,2]
[342087215,1731426632753,-600.11851945,0.00012999,2]
[342087216,1731426632766,-27076.62585173,0.00013,2]
[342087217,1731426632775,-648071.60106734,0.00013,2]
[342087218,1731426632788,-367733.67222145,0.00013,2]
[342087219,1731426632798,-99525.0,0.00013,2]
[342087220,1731426632808,-172850.05088468,0.00013,2]
[342087221,1731426632820,-1653.19449,0.00013,2]
[342087222,1731426632831,-31922.33598082,0.00013,2]
[342087223,1731426632938,-771.80354033,0.00013,2]
[342087239,1731426637565,-169.85200926,0.000125,2]
[342087241,1731426637574,-150.24865567,0.00012935,2]
[342087243,1731426637584,-16979.89933507,0.00013,2]
[342087245,1731426637595,-1234.63522344,0.00013,2]
[342087247,1731426637606,-925.901525,0.00013,2]
[342087249,1731426637617,-7645.82659826,0.00013,2]
[342087251,1731426637628,-1967.29770801,0.00013,2]
[342087253,1731426637639,-3949.66852044,0.00013,2]
[342087255,1731426637650,-316.21080454,0.00013,2]
[342087258,1731426637661,-12987.24810751,0.00013,2]
[342087259,1731426637672,-17383.96716344,0.00013,2]
[342087260,1731426637683,-1730.61508,0.00013,2]
[342087285,1731426637997,-502.94935939,0.00013,2]
[342087286,1731426638008,-565.59090259,0.00013,2]
[342087287,1731426638019,-13756.43014548,0.00013,2]
[342087288,1731426638030,-3253.96424191,0.00013,2]
[342087289,1731426638041,-118092.27675664,0.00013,2]
[342087290,1731426638085,-542.26149856,0.00013,2]
[342087291,1731426638096,-1571276.53986325,0.00013,2]
[342087292,1731426638106,-1054804.99180488,0.00013,2]
[342087293,1731426638117,-87044.21727138,0.00013,2]
[342087294,1731426638133,-2610.0,0.00013,2]
[342087301,1731426639559,-7378.9998,0.00013,2]
[342087302,1731426639571,-3174.87427853,0.00013,2]
[342087303,1731426639582,-485.83900282,0.00013,2]
[342087304,1731426639593,-278.24054983,0.00013,2]
[342087305,1731426639710,-728.41282641,0.00013,2]
[342087306,1731426639725,-5096.00615152,0.00013,2]
[342087307,1731426639736,-597.2362781,0.00013,2]
[342087645,1731426643228,-6071.09416123,0.00013,2]
[342087648,1731426643242,-5244.4739748,0.00013,2]
[342087650,1731426643255,-9081.16441254,0.00013,2]
[342087659,1731426643328,-17306.21054999,0.00013,2]
[342087662,1731426643341,-17934.98242698,0.00013,2]
[342087682,1731426643527,-531.682004,0.00013,2]
[342087685,1731426643540,-340.3699989,0.00013,2]
[342087687,1731426643553,-1233.8668519,0.00013,2]
[342087689,1731426643566,-5714.88640937,0.00013,2]
[342087692,1731426643580,-6233.990245,0.00013,2]
[342087775,1731426645798,-169.85200926,0.000126,2]
[342087776,1731426645808,-130.14799074,0.000129,2]
[342087777,1731426645912,-19.85200926,0.000129,2]
[342087778,1731426645922,-3480.14799074,0.00013,2]
[342087779,1731426646031,-552.8248046,0.00013,2]
[342087780,1731426646044,-2086.79999729,0.00013,2]
[342087781,1731426646058,-7373.6,0.00013,2]
[342087782,1731426646071,-1123.4234155,0.00013,2]
[342087935,1731426660957,-169.85200926,0.000127,2]
[342087936,1731426660983,-250.0,0.00012765,2]
[342087937,1731426661006,-169.85200926,0.000128,2]
[342087938,1731426661030,-169.85200926,0.000129,2]
[342087939,1731426661052,-220.70786873,0.00012999,2]
[342087940,1731426661076,-495.7705662,0.00012999,2]
[342087941,1731426661103,-35523.96553729,0.00013,2]
[342087942,1731426672675,-1694.7752,0.000124,2]
[342087943,1731426673368,-5468.7209,0.000125,2]
[342087944,1731426673388,-2500.0,0.000125,2]
[342087945,1731426673410,-189.91,0.00012612,2]
[342087946,1731426674588,290.24,0.00010959,2]
[342087947,1731426677935,-150.0,0.000129,2]
[342087948,1731426678072,-150.0,0.000129,2]
[342087949,1731426678271,-150.0,0.000129,2]
[342087950,1731426678341,-150.0,0.000129,2]
[342087951,1731426678394,-150.0,0.000129,2]
[342087952,1731426678427,-150.0,0.000129,2]
[342087953,1731426678470,-150.0,0.000129,2]
[342087954,1731426678601,-150.0,0.000129,2]
[342087955,1731426679265,-291.77,0.000129,2]
[342087956,1731426679298,-150.0,0.000129,2]
[342087957,1731426727099,150.0,0.00010959,2]
[342087958,1731426727120,140.24,0.00010959,2]
[342087959,1731426743273,-1221.8339,0.000125,2]
[342087960,1731426743297,-35778.1661,0.000125,2]
[342087961,1731426834837,-215.79,0.0001243,2]
[342087962,1731426850045,126623.78099781,0.00012,2]
[342087964,1731426981156,250.95,9.844e-05,2]
[342087965,1731427110683,150.0,0.00012256,2]
[342087966,1731427110704,22.34,0.00012256,2]
[342087967,1731427110897,127.66,0.00012272,2]
[342087968,1731427110920,44.68,0.00012272,2]
[342087969,1731427111417,105.32,0.00012287,2]
[342087970,1731427111443,67.02,0.00012287,2]
[342087971,1731427111640,82.98,0.00012302,2]
[342087972,1731427111663,89.36,0.00012302,2]
[342087973,1731427116307,-172.34,0.00012318,2]
[342087974,1731427116951,150.0,0.00012,2]
[342087975,1731427116973,1.000001,0.00012,2]
[342087976,1731427131452,150.0,0.00010959,2]
[342087977,1731427131474,150.0,0.00010959,2]
[342087978,1731427131495,131.02,0.00010959,2]
[342087979,1731427133388,18.98,0.00012248,2]
[342087980,1731427133408,141.22,0.00012248,2]
[342087982,1731427142325,548.28,0.00010959,2]
[342087983,1731427148993,150.0,0.00012248,2]
[342087984,1731427149015,150.0,0.00012248,2]
[342087985,1731427149036,150.0,0.00012248,2]
[342087986,1731427149058,150.0,0.00012248,2]
[342087987,1731427149080,150.0,0.00012248,2]
[342087988,1731427149104,150.0,0.00012248,2]
[342087989,1731427149124,150.0,0.00012248,2]
[342087990,1731427149146,150.0,0.00012248,2]
[342087991,1731427149167,150.0,0.00012248,2]
[342087992,1731427149189,150.0,0.00012248,2]
[342087993,1731427149210,150.0,0.00012248,2]
[342087994,1731427149231,150.0,0.00012248,2]
[342087995,1731427149253,150.0,0.00012248,2]
[342087996,1731427149274,150.0,0.00012248,2]
[342087997,1731427149296,150.0,0.00012248,2]
[342087998,1731427149316,150.0,0.00012248,2]
[342087999,1731427149338,150.0,0.00012248,2]
[342088000,1731427149364,150.0,0.00012248,2]
[342088001,1731427149385,150.0,0.00012248,2]
[342088002,1731427149407,150.0,0.00012248,2]
[342088003,1731427149430,20900.0,0.00012248,2]
[342088004,1731427163467,405.41,0.00010959,2]
[342088005,1731427173824,150.0,0.00010959,2]
[342088006,1731427173846,150.0,0.00010959,2]
[342088007,1731427173876,125.83,0.00010959,2]
[342088009,1731427203102,150.0,0.00010959,2]
[342088010,1731427205071,150.0,0.00010959,2]
[342088011,1731427205096,11.3,0.00010959,2]
[342088012,1731427262968,1000.0,0.00012236,2]
[342088013,1731427282237,500.0,0.00012245,2]
[342088014,1731427288515,150.0,0.00010327,2]
[342088015,1731427288538,150.0,0.00010327,2]
[342088016,1731427288560,150.0,0.00010327,2]
[342088017,1731427288581,150.0,0.00010327,2]
[342088018,1731427288602,150.0,0.00010327,2]
[342088019,1731427288623,135.31,0.00010327,2]
[342088020,1731427427088,-159.773333,0.0001248,2]
[342088021,1731427466332,150.0,0.00012151,2]
[342088022,1731427466352,100.0,0.00012151,2]
[342088023,1731427477964,150.0,0.00012155,2]
[342088024,1731427477986,39.91,0.00012155,2]
[342088025,1731427492378,150.0,0.00012148,2]
[342088026,1731427493420,150.0,0.00012148,2]
[342088027,1731427493445,100.0,0.00012148,2]
[342088028,1731427525579,150.0,0.00012122,2]
[342088029,1731427525600,18.16,0.00012122,2]
[342088031,1731427553696,150.0,0.00012122,2]
[342088032,1731427553978,65.79,0.00012122,2]
[342088033,1731427568149,216.49,0.00012122,2]
[342088034,1731427602908,552.87556,0.00021,31]
[342088037,1731427679538,-3376.0,0.00012487,2]
[342088038,1731427699705,-190.171466,0.000125,2]
[342088044,1731427768082,1200.0,0.0001,2]
[342088045,1731427803400,150.0,0.0001,2]
[342088046,1731427804161,150.0,0.0001,2]
[342088047,1731427804228,150.0,0.0001,2]
[342088048,1731427830042,159.76,0.00012053,2]
[342088055,1731427831623,-1374.340955,0.000125,2]